fUSD/lending_fUSD_20260401
["ID","MTS","AMOUNT","RATE_DAILY","PERIOD"]
[419213785,1775019294425,-1000.0,8.6e-05,2]
[419213786,1775019295462,-1000.0,8.6e-05,2]
[419213787,1775019296574,-1000.0,8.6e-05,2]
[419213788,1775019297523,-1000.0,8.6e-05,2]
[419213789,1775019299828,-1000.0,8.6e-05,2]
[419213790,1775019299892,-1000.0,8.6e-05,2]
[419213791,1775019301590,-1000.0,8.599e-05,2]
[419213792,1775019302625,-200.0,8.599e-05,2]
[419213793,1775019302649,-800.0,8.6e-05,2]
[419213794,1775019303599,-1000.0,8.6e-05,2]
[419213795,1775019304606,-1000.0,8.6e-05,2]
[419213796,1775019305403,-667000.0,8.6e-05,2]
[419213797,1775019305654,-1000.0,8.6e-05,2]
[419213798,1775019306051,-1000.0,8.6e-05,2]
[419213799,1775019306373,-1000.0,8.6e-05,2]
[419213800,1775019307825,-1000.0,8.6e-05,2]
[419213801,1775019308088,-1000.0,8.6e-05,2]
[419213802,1775019308766,-1000.0,8.6e-05,2]
[419213803,1775019308833,-1000.0,8.6e-05,2]
[419213804,1775019308982,426.84,8.323e-05,2]
[419213805,1775019309213,-1000.0,8.6e-05,2]
[419213806,1775019309694,-1000.0,8.6e-05,2]
[419213807,1775019311101,-1000.0,8.6e-05,2]
[419213808,1775019311213,-1000.0,8.6e-05,2]
[419213809,1775019311345,-1000.0,8.6e-05,2]
[419213810,1775019311394,-1000.0,8.6e-05,2]
[419213811,1775019311482,-500.0,8.599e-05,2]
[419213812,1775019311506,-500.0,8.6e-05,2]
[419213813,1775019313392,-153.52269476,8.599e-05,2]
[419213814,1775019313416,-500.0,8.599e-05,2]
[419213815,1775019313439,-346.47730524,8.599e-05,2]
[419213816,1775019314734,-153.52269476,8.599e-05,2]
[419213817,1775019314758,-633.12329243,8.599e-05,2]
[419213818,1775019314786,-213.35401281,8.599e-05,2]
[419213819,1775019316272,-286.64598719,8.599e-05,2]
[419213820,1775019316299,-500.0,8.599e-05,2]
[419213821,1775019316326,-213.35401281,8.599e-05,2]
[419213822,1775019317195,-286.64598719,8.599e-05,2]
[419213823,1775019317222,-500.0,8.599e-05,2]
[419213824,1775019317248,-213.35401281,8.599e-05,2]
[419213825,1775019317665,-286.64598719,8.599e-05,2]
[419213826,1775019317693,-500.0,8.599e-05,2]
[419213827,1775019317720,-213.35401281,8.599e-05,2]
[419213828,1775019317959,-286.64598719,8.599e-05,2]
[419213829,1775019317987,-500.0,8.599e-05,2]
[419213830,1775019318015,-213.35401281,8.599e-05,2]
[419213831,1775019318295,-186.64598719,8.599e-05,2]
[419213832,1775019318321,-500.0,8.599e-05,2]
[419213833,1775019318346,-313.35401281,8.599e-05,2]
[419213834,1775019318644,-186.64598719,8.599e-05,2]
[419213835,1775019318669,-813.35401281,8.6e-05,2]
[419213836,1775019319028,-1000.0,8.6e-05,2]
[419213837,1775019320666,-1000.0,8.6e-05,2]
[419213838,1775019322538,-519.75656671,8.599e-05,2]
[419213839,1775019322563,-480.24343329,8.6e-05,2]
[419213840,1775019323785,-150.0,8.599e-05,2]
[419213841,1775019323810,-850.0,8.6e-05,2]
[419213842,1775019325052,-1000.0,8.6e-05,2]
[419213843,1775019325549,-1000.0,8.6e-05,2]
[419213844,1775019325924,-1000.0,8.6e-05,2]
[419213845,1775019328876,-1000.0,8.6e-05,2]
[419213846,1775019329783,-1000.0,8.6e-05,2]
[419213847,1775019330973,-1000.0,8.6e-05,2]
[419213848,1775019332184,-221.26545796,8.599e-05,2]
[419213849,1775019332213,-500.0,8.599e-05,2]
[419213850,1775019332241,-278.73454204,8.599e-05,2]
[419213851,1775019337946,-190.0,8.599e-05,2]
[419213852,1775019356573,656.0,8.599e-05,3]
[419213853,1775019367965,2200.0,7.945e-05,2]
[419213854,1775019372049,940.0,8.425e-05,2]
[419213859,1775019470248,180.1692,8.499e-05,2]
[419213866,1775019764674,229.60070423,8.542e-05,2]
[419213877,1775020028309,-272.0,8.566e-05,2]
[419213878,1775020028350,-250.0,8.566e-05,2]
[419213879,1775020028380,-419.72109449,8.566e-05,2]
[419213880,1775020059521,5000.01,8e-05,2]
[419213881,1775020059544,3716.92920464,8e-05,2]
[419213887,1775020152443,-273.0,8.566e-05,2]
[419213888,1775020152465,-510.27890551,8.566e-05,2]
[419213889,1775020152486,-150.0,8.566e-05,2]
[419213890,1775020152507,-250.0,8.568e-05,2]
[419213891,1775020152529,-1200.0,8.571e-05,2]
[419213892,1775020152550,-300.0,8.571e-05,2]
[419213893,1775020152571,-268.16472697,8.571e-05,2]
[419213894,1775020152591,-300.0,8.572e-05,2]
[419213895,1775020152612,-300.0,8.572e-05,2]
[419213896,1775020152633,-150.0,8.572e-05,2]
[419213897,1775020152654,-500.0,8.573e-05,2]
[419213898,1775020152675,-259.16346952,8.573e-05,2]
[419213899,1775020162268,-240.83653048,8.573e-05,2]
[419213900,1775020162290,-500.12335694,8.573e-05,2]
[419213901,1775020162312,-500.0,8.573e-05,2]
[419213902,1775020162332,-200.69101128,8.573e-05,2]
[419213903,1775020162353,-500.0,8.573e-05,2]
[419213904,1775020162373,-502.99147901,8.573e-05,2]
[419213905,1775020162394,-500.0,8.573e-05,2]
[419213906,1775020162415,-500.0,8.573e-05,2]
[419213907,1775020162435,-500.0,8.573e-05,2]
[419213908,1775020162455,-151.0,8.597e-05,2]
[419213909,1775020162474,-960.47098571,8.599e-05,2]
[419213910,1775020162494,-1952.3852116,8.599e-05,2]
[419213911,1775020162514,-500.0,8.599e-05,2]
[419213912,1775020162534,-998.37,8.599e-05,2]
[419213913,1775020162556,-20.15146223,8.599e-05,2]
[419213914,1775020196005,393.96949512,7.888e-05,2]
[419213916,1775020230148,657.14,7.38e-05,2]
[419213920,1775020232320,-500.0,8.573e-05,2]
[419213921,1775020232330,-500.0,8.573e-05,2]
[419213922,1775020232340,-500.0,8.573e-05,2]
[419213923,1775020232350,-500.0,8.573e-05,2]
[419213924,1775020232360,-1200.0,8.598e-05,2]
[419213926,1775020232369,-246.0,8.598e-05,2]
[419213928,1775020232379,-273.0,8.598e-05,2]
[419213930,1775020232389,-500.0,8.599e-05,2]
[419213932,1775020232399,-131.78006585,8.599e-05,2]
[419213933,1775020232408,-4740.612,8.599e-05,2]
[419213935,1775020232418,-207.766,8.599e-05,2]
[419213937,1775020232429,-4309.75289906,8.599e-05,2]
[419213939,1775020232439,-6564.79442548,8.599e-05,2]
[419213941,1775020232449,-213.12245588,8.599e-05,2]
[419213942,1775020232458,-227.34405388,8.599e-05,2]
[419213943,1775020232474,-500.0,8.599e-05,2]
[419213944,1775020232485,-500.0,8.599e-05,2]
[419213945,1775020232495,-500.0,8.599e-05,2]
[419213946,1775020232505,-500.0,8.599e-05,2]
[419213947,1775020232515,-500.0,8.599e-05,2]
[419213948,1775020232525,-159.88989285,8.599e-05,2]
[419213949,1775020232535,-500.0,8.599e-05,2]
[419213950,1775020232545,-500.0,8.599e-05,2]
[419213951,1775020232555,-500.0,8.599e-05,2]
[419213952,1775020232565,-500.0,8.599e-05,2]
[419213953,1775020232575,-500.0,8.599e-05,2]
[419213954,1775020232585,-500.0,8.599e-05,2]
[419213955,1775020232595,-500.0,8.599e-05,2]
[419213956,1775020232606,-500.0,8.599e-05,2]
[419213957,1775020232616,-500.0,8.599e-05,2]
[419213958,1775020232627,-500.0,8.599e-05,2]
[419213959,1775020232637,-500.0,8.599e-05,2]
[419213960,1775020232646,-500.0,8.599e-05,2]
[419213961,1775020232656,-500.0,8.599e-05,2]
[419213962,1775020232667,-500.0,8.599e-05,2]
[419213963,1775020232677,-500.0,8.599e-05,2]
[419213964,1775020232686,-402.11688995,8.599e-05,2]
[419213965,1775020232696,-500.0,8.599e-05,2]
[419213966,1775020232706,-500.0,8.599e-05,2]
[419213967,1775020232716,-500.0,8.599e-05,2]
[419213968,1775020232726,-500.0,8.599e-05,2]
[419213969,1775020232736,-500.0,8.599e-05,2]
[419213970,1775020232746,-500.0,8.599e-05,2]
[419213971,1775020232756,-500.0,8.599e-05,2]
[419213972,1775020232766,-500.0,8.599e-05,2]
[419213973,1775020232776,-500.0,8.599e-05,2]
[419213974,1775020232786,-500.0,8.599e-05,2]
[419213975,1775020232796,-500.0,8.599e-05,2]
[419213976,1775020232806,-500.0,8.599e-05,2]
[419213977,1775020232816,-500.0,8.599e-05,2]
[419213978,1775020232826,-500.0,8.599e-05,2]
[419213979,1775020232837,-500.0,8.599e-05,2]
[419213980,1775020232847,-500.0,8.599e-05,2]
[419213981,1775020232856,-500.0,8.599e-05,2]
[419213982,1775020232867,-500.0,8.599e-05,2]
[419213983,1775020232877,-500.0,8.599e-05,2]
[419213984,1775020232887,-500.0,8.599e-05,2]
[419213985,1775020232898,-500.0,8.599e-05,2]
[419213986,1775020232908,-500.0,8.599e-05,2]
[419213987,1775020232918,-500.0,8.599e-05,2]
[419213988,1775020232928,-500.0,8.599e-05,2]
[419213989,1775020232938,-500.0,8.599e-05,2]
[419213990,1775020232948,-589.07169404,8.599e-05,2]
[419213991,1775020232958,-500.0,8.599e-05,2]
[419213992,1775020232968,-500.0,8.599e-05,2]
[419213993,1775020232980,-500.0,8.599e-05,2]
[419213994,1775020232990,-500.0,8.599e-05,2]
[419213995,1775020233000,-500.0,8.599e-05,2]
[419213996,1775020233010,-500.0,8.599e-05,2]
[419213997,1775020233020,-500.0,8.599e-05,2]
[419213998,1775020233030,-500.0,8.599e-05,2]
[419213999,1775020233039,-500.0,8.599e-05,2]
[419214000,1775020233049,-500.0,8.599e-05,2]
[419214001,1775020233059,-500.0,8.599e-05,2]
[419214002,1775020233069,-500.0,8.599e-05,2]
[419214003,1775020233079,-500.0,8.599e-05,2]
[419214004,1775020233089,-500.0,8.599e-05,2]
[419214005,1775020233098,-500.0,8.599e-05,2]
[419214006,1775020233108,-500.0,8.599e-05,2]
[419214007,1775020233118,-500.0,8.599e-05,2]
[419214008,1775020233127,-500.0,8.599e-05,2]
[419214009,1775020233137,-500.0,8.599e-05,2]
[419214010,1775020233146,-278.14338808,8.599e-05,2]
[419214011,1775020233156,-500.0,8.599e-05,2]
[419214012,1775020233166,-487.85743782,8.599e-05,2]
[419214013,1775020233175,-500.0,8.599e-05,2]
[419214014,1775020233185,-500.0,8.599e-05,2]
[419214015,1775020233195,-500.0,8.599e-05,2]
[419214016,1775020233205,-500.0,8.599e-05,2]
[419214017,1775020233215,-500.0,8.599e-05,2]
[419214018,1775020233226,-500.0,8.599e-05,2]
[419214019,1775020233236,-500.0,8.599e-05,2]
[419214020,1775020233246,-500.0,8.599e-05,2]
[419214021,1775020233256,-500.0,8.599e-05,2]
[419214022,1775020233266,-500.0,8.599e-05,2]
[419214023,1775020233276,-500.0,8.599e-05,2]
[419214024,1775020233286,-500.0,8.599e-05,2]
[419214025,1775020233296,-500.0,8.599e-05,2]
[419214026,1775020233306,-500.0,8.599e-05,2]
[419214027,1775020233316,-500.0,8.599e-05,2]
[419214028,1775020233327,-500.0,8.599e-05,2]
[419214029,1775020233337,-500.0,8.599e-05,2]
[419214030,1775020233348,-500.0,8.599e-05,2]
[419214031,1775020233358,-500.0,8.599e-05,2]
[419214032,1775020233368,-500.0,8.599e-05,2]
[419214033,1775020233378,-500.0,8.599e-05,2]
[419214034,1775020233388,-500.0,8.599e-05,2]
[419214035,1775020233398,-557.9320225,8.599e-05,2]
[419214036,1775020233407,-500.0,8.599e-05,2]
[419214037,1775020233416,-500.0,8.599e-05,2]
[419214038,1775020233426,-487.85743783,8.599e-05,2]
[419214039,1775020233435,-500.0,8.599e-05,2]
[419214040,1775020233445,-487.85743782,8.599e-05,2]
[419214041,1775020233455,-150.0,8.6e-05,2]
[419214042,1775020233465,-890.0,8.747e-05,2]
[419214043,1775020233474,-150.0,8.817e-05,2]
[419214044,1775020233484,-373.66865711,8.873e-05,2]
[419214045,1775020233495,-585.0,8.951e-05,2]
[419214046,1775020233504,-800.0,8.979e-05,2]
[419214047,1775020233514,-150.0,9.032e-05,2]
[419214048,1775020233523,-4196.58715113,9.035e-05,2]
[419214049,1775020233537,-3804.37284887,9.035e-05,2]
[419214050,1775020233547,-1230.94,9.035e-05,2]
[419214051,1775020233556,-1500.0,9.035e-05,2]
[419214052,1775020233565,-7436.57,9.035e-05,2]
[419214053,1775020233575,-1025.69,9.035e-05,2]
[419214054,1775020233584,-1603.44,9.035e-05,2]
[419214055,1775020233594,-25.36396536,9.035e-05,2]
[419214056,1775020233606,-474.63603464,9.035e-05,2]
[419214057,1775020233616,-150.0,9.1e-05,2]
[419214058,1775020233626,-502.01723983,9.121e-05,2]
[419214059,1775020233635,-1000.0,9.121e-05,2]
[419214060,1775020233652,-502.38986444,9.121e-05,2]
[419214061,1775020233664,-1005.11749629,9.121e-05,2]
[419214062,1775020233674,-500.70925877,9.121e-05,2]
[419214063,1775020233683,-1000.0,9.121e-05,2]
[419214064,1775020233693,-385.7,9.182e-05,2]
[419214065,1775020233703,-437.0,9.237e-05,2]
[419214066,1775020233714,-151.0,9.285e-05,2]
[419214067,1775020233724,-151.0,9.288e-05,2]
[419214068,1775020233733,-166.66,9.306e-05,2]
[419214069,1775020233744,-151.0,9.348e-05,2]
[419214070,1775020233754,-643.47,9.419e-05,2]
[419214071,1775020233763,-250.0,9.423e-05,2]
[419214072,1775020233773,-1457.39750618,9.423e-05,2]
[419214073,1775020233948,-534.74640948,9.423e-05,2]
[419214107,1775020239391,-5556.87664306,8.598e-05,2]
[419214108,1775020239401,-3007.85608434,9.423e-05,2]
[419214109,1775020239411,-250.0,9.423e-05,2]
[419214110,1775020239420,-5000.0,9.423e-05,2]
[419214111,1775020239431,-194.61263594,9.423e-05,2]
[419214112,1775020239441,-420.0,9.429e-05,2]
[419214113,1775020239451,-255.0,9.429e-05,2]
[419214114,1775020239461,-1680.0,9.458e-05,2]
[419214115,1775020239470,-250.0,9.459e-05,2]
[419214116,1775020239480,-153.91300799,9.499e-05,2]
[419214117,1775020239489,-500.0,9.499e-05,2]
[419214118,1775020239498,-276.06943322,9.499e-05,2]
[419214119,1775020239508,-500.0,9.499e-05,2]
[419214120,1775020239518,-500.0,9.499e-05,2]
[419214121,1775020239528,-500.0,9.499e-05,2]
[419214122,1775020239537,-434.76936569,9.499e-05,2]
[419214123,1775020239547,-213.82733346,9.499e-05,2]
[419214124,1775020239558,-2022858.42557743,9.5e-05,3]
[419214125,1775020239595,-499.40535172,9.5e-05,3]
[419214126,1775020239610,-4144.1699421,9.5e-05,3]
[419214127,1775020239654,-237624.00144035,9.5e-05,3]
[419214128,1775020239663,-166.66,9.613e-05,2]
[419214129,1775020239672,-600.0,9.64e-05,2]
[419214130,1775020239681,-602.45109965,9.668e-05,2]
[419214131,1775020239691,-461.33110945,9.668e-05,2]
[419214132,1775020239702,-205.0,9.8e-05,2]
[419214133,1775020239713,-262.71,9.886e-05,2]
[419214134,1775020239724,-166.66,9.92e-05,2]
[419214135,1775020239734,-793.92478478,0.0001,2]
[419214136,1775020239744,-151.0,0.0001,2]
[419214137,1775020239754,-151.0,0.0001,2]
[419214138,1775020239763,-151.0,0.0001,2]
[419214139,1775020239773,-151.0,0.0001,2]
[419214140,1775020239783,-151.0,0.0001,2]
[419214141,1775020239792,-151.0,0.0001,2]
[419214142,1775020239802,-231.48002889,0.0001,2]
[419214143,1775020239813,-2651.34303637,0.0001,2]
[419214144,1775020239822,-342.53149327,0.0001,2]
[419214145,1775020239831,-150.0,0.00010203,2]
[419214146,1775020239841,-252.996368,0.00010204,2]
[419214147,1775020239850,-166.66,0.00010227,2]
[419214148,1775020239859,-433.0,0.00010372,2]
[419214149,1775020239868,-480.0,0.00010372,2]
[419214150,1775020239878,-2351.0,0.00010404,2]
[419214151,1775020239887,-192.8427,0.000105,7]
[419214152,1775020239897,-166.66,0.00010534,2]
[419214153,1775020239907,-166.66,0.00010842,2]
[419214154,1775020239917,-500.0,0.00010958,2]
[419214155,1775020239927,-500.0,0.00010958,3]
[419214156,1775020239936,-500.0,0.00010958,4]
[419214157,1775020239946,-500.0,0.00010958,5]
[419214158,1775020239957,-500.0,0.00010958,6]
[419214159,1775020239967,-500.0,0.00010958,7]
[419214160,1775020239976,-344.69754148,0.00010958,8]
[419214161,1775020239986,-1758.88630873,0.00011,2]
[419214162,1775020239996,-240.02657587,0.00011025,2]
[419214163,1775020240005,-500.0,0.00011073,2]
[419214164,1775020240016,-1460.0,0.00011085,2]
[419214165,1775020240026,-26695.22035466,0.00011099,2]
[419214166,1775020240036,-26695.22035459,0.00011099,2]
[419214167,1775020240045,-26695.22035459,0.00011099,2]
[419214168,1775020240055,-1663.85262954,0.00011099,2]
[419214169,1775020240070,-25031.36772505,0.00011099,2]
[419214170,1775020240081,-570.05098604,0.00011107,2]
[419214171,1775020240091,-600.0,0.00011185,2]
[419214172,1775020240101,-339.03,0.00011187,2]
[419214173,1775020240111,-154.93,0.00011233,2]
[419214174,1775020240121,-14051.11,0.00011281,2]
[419214175,1775020240131,-9999.99,0.00011281,2]
[419214176,1775020240142,-250.0,0.00011362,2]
[419214177,1775020240151,-736.0,0.00011409,2]
[419214178,1775020240160,-3292.0,0.00011444,2]
[419214179,1775020240170,-169.80413258,0.000116,2]
[419214180,1775020240179,-500.0,0.00011621,2]
[419214182,1775020240188,-26695.22035459,0.00011789,2]
[419214183,1775020240198,-247.922,0.000119,12]
[419214185,1775020240207,-9999.99,0.00012087,2]
[419214187,1775020240216,-4154.72,0.00012087,2]
[419214189,1775020240224,-766.57,0.00012087,2]
[419214190,1775020240234,-150.99,0.00012087,2]
[419214191,1775020240243,-517.93,0.00012087,2]
[419214192,1775020240252,-9999.99,0.00012087,2]
[419214193,1775020240261,-150.99,0.00012087,2]
[419214194,1775020240271,-210.0,0.00012176,2]
[419214196,1775020240280,-889.0,0.00012267,2]
[419214198,1775020240289,-1252.0,0.00012549,2]
[419214199,1775020240299,-4609.0,0.00012588,2]
[419214200,1775020240307,-26695.22035459,0.00012611,2]
[419214201,1775020240316,-8000.96,0.00012648,2]
[419214202,1775020240326,-356.98998095,0.00012987,2]
[419214203,1775020240335,-69625.01225492,0.00012999,2]
[419214204,1775020240347,-250.0,0.00013,2]
[419214205,1775020240358,-505.0,0.00013111,2]
[419214206,1775020240369,-504.0,0.00013111,2]
[419214207,1775020240378,-1041.64204516,0.0001326,2]
[419214208,1775020240387,-318.733,0.000133,17]
[419214209,1775020240397,-3240.0,0.00013425,2]
[419214210,1775020240407,-263.870609,0.00013426,2]
[419214211,1775020240416,-26695.22035459,0.00013433,2]
[419214212,1775020240426,-1000.0,0.000135,2]
[419214213,1775020240437,-308.0,0.00013671,2]
[419214214,1775020240447,-500.0,0.00013698,2]
[419214215,1775020240457,-500.0,0.00013698,2]
[419214216,1775020240466,-500.0,0.00013698,2]
[419214217,1775020240475,-500.0,0.00013698,2]
[419214218,1775020240484,-470.0,0.00013698,2]
[419214219,1775020240494,-500.0,0.00013698,2]
[419214220,1775020240503,-500.0,0.00013698,2]
[419214221,1775020240512,-500.0,0.00013698,2]
[419214222,1775020240522,-500.0,0.00013698,2]
[419214223,1775020240531,-500.0,0.00013698,2]
[419214224,1775020240542,-500.0,0.00013698,2]
[419214225,1775020240552,-500.0,0.00013698,2]
[419214226,1775020240562,-500.0,0.00013698,2]
[419214227,1775020240571,-500.0,0.00013698,2]
[419214228,1775020240582,-500.0,0.00013698,2]
[419214229,1775020240591,-500.0,0.00013698,2]
[419214230,1775020240600,-500.0,0.00013698,2]
[419214231,1775020240609,-500.0,0.00013698,2]
[419214232,1775020240618,-500.0,0.00013698,2]
[419214233,1775020240628,-500.0,0.00013698,2]
[419214234,1775020240638,-500.0,0.00013698,2]
[419214235,1775020240953,-500.0,0.00013698,2]
[419214236,1775020240964,-500.0,0.00013698,2]
[419214237,1775020240973,-500.0,0.00013698,2]
[419214238,1775020240983,-500.0,0.00013698,2]
[419214239,1775020240991,-500.0,0.00013698,2]
[419214240,1775020241000,-500.0,0.00013698,2]
[419214241,1775020241009,-500.0,0.00013698,2]
[419214242,1775020241018,-500.0,0.00013698,2]
[419214243,1775020241027,-500.0,0.00013698,2]
[419214244,1775020241037,-510.47890095,0.00013698,2]
[419214245,1775020241046,-500.0,0.00013698,2]
[419214246,1775020241055,-500.0,0.00013698,2]
[419214247,1775020241064,-500.0,0.00013698,2]
[419214248,1775020241073,-500.0,0.00013698,2]
[419214249,1775020241083,-500.0,0.00013698,2]
[419214250,1775020241092,-500.0,0.00013698,2]
[419214251,1775020241101,-500.0,0.00013698,2]
[419214252,1775020241111,-500.0,0.00013698,2]
[419214253,1775020241120,-500.0,0.00013698,2]
[419214254,1775020241130,-500.0,0.00013698,2]
[419214255,1775020241139,-500.0,0.00013698,2]
[419214256,1775020241148,-500.0,0.00013698,2]
[419214257,1775020241157,-500.0,0.00013698,2]
[419214258,1775020241166,-500.0,0.00013698,2]
[419214259,1775020241176,-500.0,0.00013698,2]
[419214260,1775020241185,-500.0,0.00013698,2]
[419214261,1775020241194,-500.0,0.00013698,2]
[419214262,1775020241204,-500.0,0.00013698,2]
[419214263,1775020241213,-500.0,0.00013698,2]
[419214264,1775020241222,-500.0,0.00013698,2]
[419214266,1775020241232,-500.0,0.00013698,2]
[419214268,1775020241242,-500.0,0.00013698,2]
[419214270,1775020241251,-500.0,0.00013698,2]
[419214272,1775020241260,-500.0,0.00013698,2]
[419214273,1775020241269,-500.0,0.00013698,2]
[419214275,1775020241278,-500.0,0.00013698,2]
[419214277,1775020241287,-500.0,0.00013698,2]
[419214279,1775020241296,-500.0,0.00013698,2]
[419214281,1775020241305,-500.0,0.00013698,2]
[419214283,1775020241314,-540.78906624,0.00013698,2]
[419214285,1775020241323,-500.0,0.00013698,2]
[419214287,1775020241332,-500.0,0.00013698,2]
[419214289,1775020241341,-500.0,0.00013698,2]
[419214291,1775020241350,-500.0,0.00013698,2]
[419214293,1775020241359,-500.0,0.00013698,2]
[419214294,1775020241368,-500.0,0.00013698,2]
[419214295,1775020241377,-500.0,0.00013698,2]
[419214296,1775020241386,-500.0,0.00013698,2]
[419214297,1775020241396,-500.0,0.00013698,2]
[419214298,1775020241405,-500.0,0.00013698,2]
[419214299,1775020241414,-500.0,0.00013698,2]
[419214300,1775020241423,-516.21032546,0.00013698,2]
[419214301,1775020241432,-500.0,0.00013698,2]
[419214302,1775020241441,-500.0,0.00013698,2]
[419214303,1775020241450,-500.0,0.00013698,2]
[419214304,1775020241459,-500.0,0.00013698,2]
[419214305,1775020241469,-500.0,0.00013698,2]
[419214306,1775020241479,-500.0,0.00013698,2]
[419214307,1775020241488,-500.0,0.00013698,2]
[419214308,1775020241497,-500.0,0.00013698,2]
[419214309,1775020241507,-500.0,0.00013698,2]
[419214310,1775020241516,-620.22257606,0.00013698,2]
[419214311,1775020241524,-500.0,0.00013698,2]
[419214312,1775020241534,-500.0,0.00013698,2]
[419214313,1775020241544,-500.0,0.00013698,2]
[419214314,1775020241552,-500.0,0.00013698,2]
[419214315,1775020241562,-500.0,0.00013698,2]
[419214316,1775020241571,-500.0,0.00013698,2]
[419214317,1775020241579,-500.0,0.00013698,2]
[419214318,1775020241588,-500.0,0.00013698,2]
[419214319,1775020241600,-500.0,0.00013698,2]
[419214320,1775020241609,-500.0,0.00013698,2]
[419214321,1775020241618,-500.0,0.00013698,2]
[419214323,1775020241627,-635.84717281,0.00013698,2]
[419214325,1775020241636,-500.0,0.00013698,2]
[419214327,1775020241644,-500.0,0.00013698,2]
[419214329,1775020241654,-500.0,0.00013698,2]
[419214331,1775020241663,-500.0,0.00013698,2]
[419214332,1775020241672,-500.0,0.00013698,2]
[419214333,1775020241680,-500.0,0.00013698,2]
[419214334,1775020241689,-364.46693819,0.00013698,2]
[419214335,1775020241698,-500.0,0.00013698,2]
[419214336,1775020241707,-500.0,0.00013698,2]
[419214337,1775020241716,-500.0,0.00013698,2]
[419214338,1775020241726,-500.0,0.00013698,2]
[419214339,1775020241735,-500.0,0.00013698,2]
[419214340,1775020241744,-500.0,0.00013698,2]
[419214341,1775020241755,-538.13879554,0.00013698,2]
[419214342,1775020241764,-586.09491028,0.00013698,2]
[419214343,1775020241773,-509.99225915,0.00013698,2]
[419214344,1775020241783,-500.0,0.00013698,2]
[419214345,1775020241792,-500.0,0.00013698,2]
[419214346,1775020241802,-500.0,0.00013698,2]
[419214347,1775020241811,-383.56993294,0.00013698,2]
[419214348,1775020241821,-500.0,0.00013698,2]
[419214349,1775020241831,-500.0,0.00013698,2]
[419214350,1775020241840,-500.0,0.00013698,2]
[419214351,1775020241849,-500.0,0.00013698,2]
[419214352,1775020241859,-500.0,0.00013698,2]
[419214353,1775020241868,-500.0,0.00013698,2]
[419214354,1775020241877,-500.0,0.00013698,2]
[419214355,1775020241886,-500.0,0.00013698,2]
[419214356,1775020241895,-500.0,0.00013698,2]
[419214357,1775020241904,-500.0,0.00013698,2]
[419214358,1775020241913,-500.0,0.00013698,2]
[419214359,1775020241922,-500.0,0.00013698,2]
[419214360,1775020241931,-500.0,0.00013698,2]
[419214361,1775020241940,-435.57567252,0.00013698,2]
[419214362,1775020241950,-500.0,0.00013698,2]
[419214363,1775020241959,-500.0,0.00013698,2]
[419214364,1775020241969,-500.0,0.00013698,2]
[419214365,1775020241978,-500.0,0.00013698,2]
[419214366,1775020241987,-500.0,0.00013698,2]
[419214367,1775020241996,-500.0,0.00013698,2]
[419214368,1775020242005,-500.0,0.00013698,2]
[419214369,1775020242014,-500.0,0.00013698,2]
[419214370,1775020242023,-500.0,0.00013698,2]
[419214371,1775020242033,-500.0,0.00013698,2]
[419214372,1775020242044,-500.0,0.00013698,2]
[419214373,1775020242054,-500.0,0.00013698,2]
[419214374,1775020242064,-500.0,0.00013698,2]
[419214375,1775020242074,-500.0,0.00013698,2]
[419214376,1775020242082,-500.0,0.00013698,2]
[419214377,1775020242093,-500.0,0.00013698,2]
[419214378,1775020242102,-500.0,0.00013698,2]
[419214379,1775020242112,-500.0,0.00013698,2]